[Event "Titled Tuesday Blitz February 28 Early 2023"]
[White "Srihari L R"]
[Black "Ilinca Ilinca, Felix Antonio"]
[WhiteFideId "46617116"]
[BlackFideId "54764998"]
[WhiteElo "2334"]
[BlackElo "2031"]
[Result "0-1"]
[Round "09"]
[TimeControl "180+2"]
[Date "2023.02.28"]
[WhiteClock "0:00:40"]
[BlackClock "0:01:29"]

1. d4 {[%clk 0:03:00]}  d5 {[%clk 0:02:59]} 2. c4 {[%clk 0:03:01]}  e5 {[%clk 0:02:46]} 3. dxe5 {[%clk 0:03:00]}  d4 {[%clk 0:02:46]} 4. Nf3 {[%clk 0:03:00]}  Nc6 {[%clk 0:02:43]} 5. a3 {[%clk 0:03:00]}  Nge7 {[%clk 0:02:40]} 6. b4 {[%clk 0:02:53]}  Ng6 {[%clk 0:02:39]} 7. Bb2 {[%clk 0:02:49]}  a5 {[%clk 0:02:37]} 8. b5 {[%clk 0:02:47]}  Ncxe5 {[%clk 0:02:36]} 9. Nxe5 {[%clk 0:02:46]}  Nxe5 {[%clk 0:02:37]} 10. Qxd4 {[%clk 0:02:46]}  Qxd4 {[%clk 0:02:31]} 11. Bxd4 {[%clk 0:02:47]}  Nxc4 {[%clk 0:02:31]} 12. e3 {[%clk 0:02:47]}  Be6 {[%clk 0:02:25]} 13. f4 {[%clk 0:02:30]}  Nd6 {[%clk 0:02:22]} 14. Kf2 {[%clk 0:02:20]}  Nf5 {[%clk 0:02:18]} 15. Bb2 {[%clk 0:02:18]}  O-O-O {[%clk 0:02:14]} 16. g4 {[%clk 0:02:08]}  Nxe3 {[%clk 0:02:03]} 17. Kxe3 {[%clk 0:02:00]}  Bc5+ {[%clk 0:02:03]} 18. Kf3 {[%clk 0:01:50]}  Bd5+ {[%clk 0:02:02]} 19. Kg3 {[%clk 0:01:46]}  Bxh1 {[%clk 0:02:02]} 20. Nc3 {[%clk 0:01:46]}  Rhe8 {[%clk 0:01:58]} 21. Bc4 {[%clk 0:01:45]}  Re3+ {[%clk 0:01:53]} 22. Kh4 {[%clk 0:01:45]}  Bg2 {[%clk 0:01:50]} 23. g5 {[%clk 0:01:44]}  h5 {[%clk 0:01:33]} 24. gxh6 {[%clk 0:00:44]}  Be7+ {[%clk 0:01:29]} 25. Kh5 {[%clk 0:00:40]}  g6+ {[%clk 0:01:29]} 26. Kg4 {[%clk 0:00:40]}  f5# {[%clk 0:01:29]} 0-1


[Site "https://www.chess.com"]

[Event "Titled Tuesday Blitz February 28 Early 2023"]
[White "Averjanov, Alexey"]
[Black "Ordekalog"]
[WhiteFideId "14109867"]
[WhiteElo "2663"]
[BlackElo "2582"]
[Result "1-0"]
[Round "09"]
[TimeControl "180+2"]
[Date "2023.02.28"]
[WhiteClock "0:00:06"]
[BlackClock "0:00:01"]

1. d4 {[%clk 0:03:00]}  d5 {[%clk 0:02:55]} 2. c4 {[%clk 0:03:00]}  e6 {[%clk 0:02:54]} 3. Nf3 {[%clk 0:02:58]}  c5 {[%clk 0:02:54]} 4. dxc5 {[%clk 0:02:57]}  Bxc5 {[%clk 0:02:53]} 5. e3 {[%clk 0:02:57]}  Nf6 {[%clk 0:02:53]} 6. a3 {[%clk 0:02:55]}  a6 {[%clk 0:02:52]} 7. b4 {[%clk 0:02:54]}  Ba7 {[%clk 0:02:51]} 8. Bb2 {[%clk 0:02:52]}  O-O {[%clk 0:02:49]} 9. Nbd2 {[%clk 0:02:52]}  Nc6 {[%clk 0:02:40]} 10. Rc1 {[%clk 0:02:51]}  Qe7 {[%clk 0:02:39]} 11. Be2 {[%clk 0:02:51]}  dxc4 {[%clk 0:02:35]} 12. Nxc4 {[%clk 0:02:48]}  Rd8 {[%clk 0:02:30]} 13. Qb3 {[%clk 0:02:47]}  Bd7 {[%clk 0:02:24]} 14. O-O {[%clk 0:02:45]}  Rac8 {[%clk 0:02:22]} 15. Rfd1 {[%clk 0:02:44]}  Be8 {[%clk 0:02:23]} 16. h3 {[%clk 0:02:42]}  h6 {[%clk 0:02:20]} 17. Nce5 {[%clk 0:02:40]}  Bb8 {[%clk 0:02:08]} 18. Rxd8 {[%clk 0:02:33]}  Rxd8 {[%clk 0:01:59]} 19. Rd1 {[%clk 0:02:33]}  Rxd1+ {[%clk 0:01:57]} 20. Qxd1 {[%clk 0:02:34]}  Nxe5 {[%clk 0:01:55]} 21. Nxe5 {[%clk 0:02:35]}  Nd7 {[%clk 0:01:44]} 22. Nc4 {[%clk 0:02:30]}  Bc7 {[%clk 0:01:34]} 23. Bf3 {[%clk 0:02:28]}  b5 {[%clk 0:01:34]} 24. Na5 {[%clk 0:02:25]}  Bxa5 {[%clk 0:01:34]} 25. bxa5 {[%clk 0:02:26]}  Nf6 {[%clk 0:01:25]} 26. Qd4 {[%clk 0:02:22]}  Qd7 {[%clk 0:01:12]} 27. Qb6 {[%clk 0:02:14]}  Qc8 {[%clk 0:01:03]} 28. Bb7 {[%clk 0:02:14]}  Qc2 {[%clk 0:01:03]} 29. Bxf6 {[%clk 0:02:11]}  Qd1+ {[%clk 0:00:59]} 30. Kh2 {[%clk 0:02:11]}  gxf6 {[%clk 0:01:00]} 31. Bxa6 {[%clk 0:02:08]}  Qd2 {[%clk 0:00:57]} 32. Bb7 {[%clk 0:02:05]}  Qxf2 {[%clk 0:00:48]} 33. a6 {[%clk 0:02:05]}  f5 {[%clk 0:00:47]} 34. a7 {[%clk 0:02:03]}  f4 {[%clk 0:00:47]} 35. Qa5 {[%clk 0:01:02]}  Qg3+ {[%clk 0:00:33]} 36. Kh1 {[%clk 0:01:00]}  fxe3 {[%clk 0:00:31]} 37. a8=Q {[%clk 0:00:52]}  e2 {[%clk 0:00:30]} 38. Qxe8+ {[%clk 0:00:46]}  Kg7 {[%clk 0:00:31]} 39. Qexb5 {[%clk 0:00:31]}  e1=Q+ {[%clk 0:00:20]} 40. Qxe1 {[%clk 0:00:32]}  Qxe1+ {[%clk 0:00:20]} 41. Kh2 {[%clk 0:00:32]}  Qe3 {[%clk 0:00:15]} 42. Qb2+ {[%clk 0:00:28]}  f6 {[%clk 0:00:15]} 43. Bf3 {[%clk 0:00:19]}  Qf4+ {[%clk 0:00:13]} 44. Kh1 {[%clk 0:00:19]}  Qc4 {[%clk 0:00:09]} 45. Qb7+ {[%clk 0:00:18]}  Kg8 {[%clk 0:00:07]} 46. Qa8+ {[%clk 0:00:18]}  Kg7 {[%clk 0:00:06]} 47. Qb7+ {[%clk 0:00:18]}  Kg8 {[%clk 0:00:06]} 48. Qb8+ {[%clk 0:00:16]}  Kg7 {[%clk 0:00:06]} 49. Qg3+ {[%clk 0:00:14]}  Kf7 {[%clk 0:00:05]} 50. Qe1 {[%clk 0:00:14]}  Kg7 {[%clk 0:00:02]} 51. Bd1 {[%clk 0:00:12]}  Qc1 {[%clk 0:00:01]} 52. a4 {[%clk 0:00:10]}  Kf8 {[%clk 0:00:02]} 53. a5 {[%clk 0:00:09]}  Qa1 {[%clk 0:00:01]} 54. Kg1 {[%clk 0:00:07]}  Kg7 {[%clk 0:00:02]} 55. Kf1 {[%clk 0:00:06]}  Kf8 {[%clk 0:00:02]} 56. Be2 {[%clk 0:00:06]}  Qe5 {[%clk 0:00:01]} 57. a6 {[%clk 0:00:07]}  Qf4+ {[%clk 0:00:01]} 58. Kg1 {[%clk 0:00:06]}  Qd4+ {[%clk 0:00:02]} 59. Kh1 {[%clk 0:00:06]}  Qa7 {[%clk 0:00:02]} 60. Bf1 {[%clk 0:00:06]}  Ke7 {[%clk 0:00:01]} 61. Qb4+ {[%clk 0:00:06]}  Kf7 {[%clk 0:00:01]} 62. Qb7+ {[%clk 0:00:06]} 1-0


[Site "https://www.chess.com"]

[Event "Titled Tuesday Blitz February 28 Early 2023"]
[White "Krstulovic, Alex"]
[Black "Weetik, Vjacheslav"]
[WhiteFideId "760056"]
[BlackFideId "4153472"]
[WhiteElo "2311"]
[BlackElo "2469"]
[Result "1-0"]
[Round "09"]
[TimeControl "180+2"]
[Date "2023.02.28"]
[WhiteClock "0:01:34"]
[BlackClock "0:00:17"]

1. d4 {[%clk 0:03:00]}  Nf6 {[%clk 0:02:57]} 2. Nf3 {[%clk 0:02:59]}  g6 {[%clk 0:02:55]} 3. c4 {[%clk 0:02:59]}  Bg7 {[%clk 0:02:55]} 4. Nc3 {[%clk 0:03:00]}  d6 {[%clk 0:02:56]} 5. e4 {[%clk 0:03:00]}  O-O {[%clk 0:02:56]} 6. Be2 {[%clk 0:03:01]}  e5 {[%clk 0:02:56]} 7. O-O {[%clk 0:03:01]}  Nc6 {[%clk 0:02:56]} 8. d5 {[%clk 0:03:02]}  Ne7 {[%clk 0:02:57]} 9. Kh1 {[%clk 0:03:03]}  a5 {[%clk 0:02:49]} 10. a3 {[%clk 0:02:54]}  Nd7 {[%clk 0:02:45]} 11. g4 {[%clk 0:02:51]}  Kh8 {[%clk 0:02:29]} 12. Rg1 {[%clk 0:02:49]}  Nc5 {[%clk 0:02:21]} 13. Be3 {[%clk 0:02:41]}  f5 {[%clk 0:01:43]} 14. gxf5 {[%clk 0:02:41]}  gxf5 {[%clk 0:01:43]} 15. Ng5 {[%clk 0:02:39]}  Ng8 {[%clk 0:01:29]} 16. Bh5 {[%clk 0:02:29]}  Nh6 {[%clk 0:01:25]} 17. Nxh7 {[%clk 0:02:24]}  f4 {[%clk 0:00:59]} 18. Nxf8 {[%clk 0:02:15]}  Qxf8 {[%clk 0:00:47]} 19. Bxc5 {[%clk 0:02:13]}  dxc5 {[%clk 0:00:48]} 20. Nb5 {[%clk 0:02:03]}  Qd8 {[%clk 0:00:36]} 21. Rxg7 {[%clk 0:01:49]}  Kxg7 {[%clk 0:00:36]} 22. Qg1+ {[%clk 0:01:50]}  Kh8 {[%clk 0:00:29]} 23. Qg6 {[%clk 0:01:49]}  Ra6 {[%clk 0:00:28]} 24. d6 {[%clk 0:01:50]}  Rxd6 {[%clk 0:00:26]} 25. Nxd6 {[%clk 0:01:48]}  Qxd6 {[%clk 0:00:25]} 26. Qe8+ {[%clk 0:01:37]}  Kg7 {[%clk 0:00:17]} 27. Rg1+ {[%clk 0:01:34]} 1-0


[Site "https://www.chess.com"]

[Event "Titled Tuesday Blitz February 28 Early 2023"]
[White "Dehtiarov, Roman"]
[Black "Andreev, Konstantin"]
[WhiteFideId "14186640"]
[BlackFideId "24239305"]
[WhiteElo "2162"]
[BlackElo "2106"]
[Result "1-0"]
[Round "09"]
[TimeControl "180+2"]
[Date "2023.02.28"]
[WhiteClock "0:00:05"]
[BlackClock "0:00:01"]

1. e4 {[%clk 0:02:53]}  c5 {[%clk 0:02:59]} 2. Nc3 {[%clk 0:02:51]}  e6 {[%clk 0:02:57]} 3. f4 {[%clk 0:02:51]}  Nc6 {[%clk 0:02:57]} 4. Nf3 {[%clk 0:02:51]}  Nge7 {[%clk 0:02:57]} 5. Bb5 {[%clk 0:02:52]}  d6 {[%clk 0:02:57]} 6. O-O {[%clk 0:02:51]}  g6 {[%clk 0:02:57]} 7. d3 {[%clk 0:02:51]}  Bg7 {[%clk 0:02:57]} 8. Qe1 {[%clk 0:02:52]}  O-O {[%clk 0:02:57]} 9. Be3 {[%clk 0:02:51]}  a6 {[%clk 0:02:57]} 10. Bxc6 {[%clk 0:02:52]}  Nxc6 {[%clk 0:02:56]} 11. Rd1 {[%clk 0:02:52]}  Qc7 {[%clk 0:02:55]} 12. Qh4 {[%clk 0:02:51]}  b5 {[%clk 0:02:51]} 13. Ne2 {[%clk 0:02:44]}  f5 {[%clk 0:02:45]} 14. Ng3 {[%clk 0:02:41]}  Bxb2 {[%clk 0:02:40]} 15. e5 {[%clk 0:02:21]}  dxe5 {[%clk 0:02:33]} 16. Bxc5 {[%clk 0:02:21]}  Rd8 {[%clk 0:02:31]} 17. fxe5 {[%clk 0:01:44]}  Nxe5 {[%clk 0:02:30]} 18. d4 {[%clk 0:01:44]}  Nxf3+ {[%clk 0:01:57]} 19. Rxf3 {[%clk 0:01:45]}  Bb7 {[%clk 0:01:57]} 20. Rff1 {[%clk 0:01:14]}  Qc6 {[%clk 0:01:56]} 21. Rf2 {[%clk 0:00:52]}  e5 {[%clk 0:01:43]} 22. Rd3 {[%clk 0:00:25]}  exd4 {[%clk 0:00:35]} 23. Nxf5 {[%clk 0:00:17]}  gxf5 {[%clk 0:00:24]} 24. Rg3+ {[%clk 0:00:06]}  Kh8 {[%clk 0:00:24]} 25. Qe7 {[%clk 0:00:04]}  d3 {[%clk 0:00:23]} 26. c3 {[%clk 0:00:03]}  Bxc3 {[%clk 0:00:20]} 27. Rxf5 {[%clk 0:00:03]}  d2 {[%clk 0:00:11]} 28. Rf1 {[%clk 0:00:02]}  d1=Q {[%clk 0:00:11]} 29. Rxd1 {[%clk 0:00:03]}  Rxd1+ {[%clk 0:00:11]} 30. Kf2 {[%clk 0:00:04]}  Qxc5+ {[%clk 0:00:09]} 31. Qxc5 {[%clk 0:00:03]}  Bd4+ {[%clk 0:00:09]} 32. Ke2 {[%clk 0:00:03]}  Bxc5 {[%clk 0:00:08]} 33. Kxd1 {[%clk 0:00:04]}  Rd8+ {[%clk 0:00:08]} 34. Kc2 {[%clk 0:00:04]}  Be4+ {[%clk 0:00:07]} 35. Kc3 {[%clk 0:00:05]}  Bd4+ {[%clk 0:00:07]} 36. Kb4 {[%clk 0:00:05]}  Rc8 {[%clk 0:00:06]} 37. Ka5 {[%clk 0:00:06]}  Bd5 {[%clk 0:00:02]} 38. Rd3 {[%clk 0:00:05]}  Bc3+ {[%clk 0:00:03]} 39. Kxa6 {[%clk 0:00:05]}  Be4 {[%clk 0:00:03]} 40. Re3 {[%clk 0:00:05]}  Bf5 {[%clk 0:00:03]} 41. Kxb5 {[%clk 0:00:04]}  Kg7 {[%clk 0:00:03]} 42. Rg3+ {[%clk 0:00:04]}  Kf6 {[%clk 0:00:03]} 43. Rf3 {[%clk 0:00:05]}  Be5 {[%clk 0:00:04]} 44. g4 {[%clk 0:00:04]}  Rb8+ {[%clk 0:00:04]} 45. Kc6 {[%clk 0:00:04]}  Rc8+ {[%clk 0:00:03]} 46. Kb5 {[%clk 0:00:04]}  Ke6 {[%clk 0:00:03]} 47. Rxf5 {[%clk 0:00:04]}  Ra8 {[%clk 0:00:03]} 48. a4 {[%clk 0:00:04]}  Rb8+ {[%clk 0:00:03]} 49. Kc4 {[%clk 0:00:04]}  Ra8 {[%clk 0:00:03]} 50. Kb5 {[%clk 0:00:05]}  Rb8+ {[%clk 0:00:03]} 51. Kc4 {[%clk 0:00:05]}  Ra8 {[%clk 0:00:02]} 52. Kb3 {[%clk 0:00:05]}  Kd5 {[%clk 0:00:02]} 53. Rh5 {[%clk 0:00:04]}  Ra7 {[%clk 0:00:01]} 54. h4 {[%clk 0:00:04]}  Kd4 {[%clk 0:00:02]} 55. Rf5 {[%clk 0:00:04]}  Rb7+ {[%clk 0:00:02]} 56. Kc2 {[%clk 0:00:05]}  Rb4 {[%clk 0:00:01]} 57. Rh5 {[%clk 0:00:05]} 1-0


[Site "https://www.chess.com"]

[Event "Titled Tuesday Blitz February 28 Early 2023"]
[White "Todorovic, Bojan"]
[Black "Skvortsov, Andrei"]
[WhiteFideId "917087"]
[BlackFideId "24108600"]
[WhiteElo "2266"]
[BlackElo "2259"]
[Result "0-1"]
[Round "09"]
[TimeControl "180+2"]
[Date "2023.02.28"]
[WhiteClock "0:00:08"]
[BlackClock "0:00:08"]

1. Nf3 {[%clk 0:02:57]}  d5 {[%clk 0:02:52]} 2. g3 {[%clk 0:02:56]}  Nd7 {[%clk 0:02:51]} 3. d4 {[%clk 0:02:54]}  Ngf6 {[%clk 0:02:49]} 4. Bg2 {[%clk 0:02:53]}  Nb6 {[%clk 0:02:50]} 5. O-O {[%clk 0:02:52]}  e6 {[%clk 0:02:44]} 6. b3 {[%clk 0:02:49]}  c5 {[%clk 0:02:44]} 7. e3 {[%clk 0:02:48]}  Be7 {[%clk 0:02:43]} 8. Bb2 {[%clk 0:02:46]}  c4 {[%clk 0:02:40]} 9. Ne5 {[%clk 0:02:44]}  cxb3 {[%clk 0:02:39]} 10. axb3 {[%clk 0:02:44]}  O-O {[%clk 0:02:33]} 11. Nd2 {[%clk 0:02:40]}  a5 {[%clk 0:02:31]} 12. c4 {[%clk 0:02:39]}  Nbd7 {[%clk 0:02:25]} 13. Nd3 {[%clk 0:02:31]}  Nb8 {[%clk 0:02:21]} 14. e4 {[%clk 0:02:25]}  dxe4 {[%clk 0:02:20]} 15. Nxe4 {[%clk 0:02:24]}  Nc6 {[%clk 0:02:21]} 16. Ne5 {[%clk 0:01:58]}  Qc7 {[%clk 0:02:05]} 17. Nxc6 {[%clk 0:01:32]}  bxc6 {[%clk 0:02:01]} 18. d5 {[%clk 0:01:30]}  Nxe4 {[%clk 0:01:54]} 19. Bxe4 {[%clk 0:01:29]}  cxd5 {[%clk 0:01:31]} 20. cxd5 {[%clk 0:01:20]}  exd5 {[%clk 0:01:31]} 21. Bxd5 {[%clk 0:01:20]}  Rb8 {[%clk 0:01:26]} 22. Qf3 {[%clk 0:01:12]}  Qb6 {[%clk 0:01:18]} 23. Rfe1 {[%clk 0:01:07]}  Bc5 {[%clk 0:01:11]} 24. Re8 {[%clk 0:01:05]}  Bxf2+ {[%clk 0:00:56]} 25. Kg2 {[%clk 0:01:05]}  Bh3+ {[%clk 0:00:55]} 26. Kxh3 {[%clk 0:00:59]}  Rbxe8 {[%clk 0:00:55]} 27. Rf1 {[%clk 0:00:47]}  Bd4 {[%clk 0:00:46]} 28. Bxf7+ {[%clk 0:00:40]}  Kh8 {[%clk 0:00:45]} 29. Bxe8 {[%clk 0:00:37]}  Rxf3 {[%clk 0:00:37]} 30. Rxf3 {[%clk 0:00:37]}  Qe6+ {[%clk 0:00:26]} 31. g4 {[%clk 0:00:29]}  h5 {[%clk 0:00:12]} 32. Rf5 {[%clk 0:00:08]}  hxg4+ {[%clk 0:00:08]} 33. Kxg4 {[%clk 0:00:08]}  Bxb2 {[%clk 0:00:08]} 34. Bf7 {[%clk 0:00:08]}  Qe4+ {[%clk 0:00:08]} 0-1


[Site "https://www.chess.com"]

[Event "Titled Tuesday Blitz February 28 Early 2023"]
[White "Ingebretsen, Jens E"]
[Black "Yuan, Qingyu"]
[WhiteFideId "1522965"]
[BlackFideId "8609772"]
[WhiteElo "2213"]
[BlackElo "2359"]
[Result "0-1"]
[Round "09"]
[TimeControl "180+2"]
[Date "2023.02.28"]
[WhiteClock "0:00:09"]
[BlackClock "0:00:04"]

1. d4 {[%clk 0:03:00]}  Nf6 {[%clk 0:03:00]} 2. c4 {[%clk 0:03:01]}  g6 {[%clk 0:03:00]} 3. Nc3 {[%clk 0:03:01]}  d5 {[%clk 0:03:01]} 4. cxd5 {[%clk 0:02:59]}  Nxd5 {[%clk 0:03:01]} 5. Bd2 {[%clk 0:03:00]}  Bg7 {[%clk 0:03:01]} 6. Nf3 {[%clk 0:03:00]}  O-O {[%clk 0:03:01]} 7. h4 {[%clk 0:03:01]}  c5 {[%clk 0:02:53]} 8. dxc5 {[%clk 0:02:58]}  Nxc3 {[%clk 0:02:45]} 9. Bxc3 {[%clk 0:02:56]}  Bxc3+ {[%clk 0:02:45]} 10. bxc3 {[%clk 0:02:57]}  Qa5 {[%clk 0:02:41]} 11. Qc1 {[%clk 0:02:52]}  Bg4 {[%clk 0:02:27]} 12. h5 {[%clk 0:02:50]}  Qxc5 {[%clk 0:01:55]} 13. hxg6 {[%clk 0:02:46]}  fxg6 {[%clk 0:01:55]} 14. e3 {[%clk 0:02:33]}  Bxf3 {[%clk 0:01:48]} 15. gxf3 {[%clk 0:02:33]}  Nc6 {[%clk 0:01:46]} 16. f4 {[%clk 0:02:21]}  e5 {[%clk 0:01:45]} 17. Qc2 {[%clk 0:02:13]}  exf4 {[%clk 0:01:33]} 18. Qb3+ {[%clk 0:02:10]}  Kh8 {[%clk 0:01:25]} 19. Bd3 {[%clk 0:01:51]}  Ne5 {[%clk 0:01:17]} 20. Be4 {[%clk 0:01:42]}  fxe3 {[%clk 0:01:13]} 21. f4 {[%clk 0:01:35]}  Rxf4 {[%clk 0:00:56]} 22. O-O-O {[%clk 0:01:32]}  Rc8 {[%clk 0:00:34]} 23. Qxb7 {[%clk 0:01:17]}  Qxc3+ {[%clk 0:00:23]} 24. Kb1 {[%clk 0:01:16]}  Qc7 {[%clk 0:00:23]} 25. Rd8+ {[%clk 0:01:07]}  Kg7 {[%clk 0:00:17]} 26. Rxc8 {[%clk 0:01:01]}  Qxb7+ {[%clk 0:00:14]} 27. Bxb7 {[%clk 0:01:01]}  Rb4+ {[%clk 0:00:14]} 28. Kc2 {[%clk 0:01:01]}  Rxb7 {[%clk 0:00:15]} 29. Re1 {[%clk 0:01:01]}  Ng4 {[%clk 0:00:15]} 30. a4 {[%clk 0:00:53]}  h5 {[%clk 0:00:14]} 31. a5 {[%clk 0:00:53]}  Rd7 {[%clk 0:00:14]} 32. a6 {[%clk 0:00:51]}  Kh6 {[%clk 0:00:14]} 33. Rc6 {[%clk 0:00:40]}  h4 {[%clk 0:00:12]} 34. Rc4 {[%clk 0:00:38]}  Kh5 {[%clk 0:00:09]} 35. Rg1 {[%clk 0:00:34]}  Nf2 {[%clk 0:00:04]} 36. Re1 {[%clk 0:00:29]}  Rd2+ {[%clk 0:00:04]} 37. Kc3 {[%clk 0:00:28]}  Rd3+ {[%clk 0:00:03]} 38. Kc2 {[%clk 0:00:28]}  h3 {[%clk 0:00:03]} 39. Rc7 {[%clk 0:00:28]}  Kg4 {[%clk 0:00:03]} 40. Rxa7 {[%clk 0:00:27]}  Rd2+ {[%clk 0:00:03]} 41. Kb3 {[%clk 0:00:26]}  h2 {[%clk 0:00:03]} 42. Rh7 {[%clk 0:00:23]}  h1=Q {[%clk 0:00:03]} 43. Rhxh1 {[%clk 0:00:22]}  Nxh1 {[%clk 0:00:04]} 44. a7 {[%clk 0:00:20]}  Rd8 {[%clk 0:00:03]} 45. Rxh1 {[%clk 0:00:20]}  Ra8 {[%clk 0:00:03]} 46. Ra1 {[%clk 0:00:12]}  Kf3 {[%clk 0:00:02]} 47. Kc3 {[%clk 0:00:13]}  e2 {[%clk 0:00:03]} 48. Kd2 {[%clk 0:00:08]}  Kf2 {[%clk 0:00:03]} 49. Re1 {[%clk 0:00:09]}  Rd8+ {[%clk 0:00:03]} 50. Kc2 {[%clk 0:00:09]}  Kxe1 {[%clk 0:00:04]} 0-1


[Site "https://www.chess.com"]

[Event "Titled Tuesday Blitz February 28 Early 2023"]
[White "Martin Duque, Jesus"]
[Black "Seemann, Jakub"]
[WhiteFideId "2208954"]
[BlackFideId "21874697"]
[WhiteElo "2305"]
[BlackElo "2364"]
[Result "0-1"]
[Round "09"]
[TimeControl "180+2"]
[Date "2023.02.28"]
[WhiteClock "0:00:01"]
[BlackClock "0:00:08"]

1. Nf3 {[%clk 0:03:00]}  Nf6 {[%clk 0:02:39]} 2. b3 {[%clk 0:02:59]}  b6 {[%clk 0:02:34]} 3. g3 {[%clk 0:02:59]}  Bb7 {[%clk 0:02:34]} 4. Bg2 {[%clk 0:02:59]}  g6 {[%clk 0:02:34]} 5. Bb2 {[%clk 0:03:00]}  Bg7 {[%clk 0:02:35]} 6. O-O {[%clk 0:03:01]}  O-O {[%clk 0:02:35]} 7. e3 {[%clk 0:03:01]}  d5 {[%clk 0:02:34]} 8. Qe2 {[%clk 0:03:01]}  Nbd7 {[%clk 0:02:31]} 9. Rd1 {[%clk 0:03:01]}  Re8 {[%clk 0:02:30]} 10. d4 {[%clk 0:03:01]}  Ne4 {[%clk 0:02:30]} 11. c4 {[%clk 0:03:01]}  dxc4 {[%clk 0:02:29]} 12. bxc4 {[%clk 0:02:56]}  c5 {[%clk 0:02:29]} 13. d5 {[%clk 0:02:55]}  Bxb2 {[%clk 0:02:29]} 14. Qxb2 {[%clk 0:02:55]}  Nd6 {[%clk 0:02:30]} 15. Nfd2 {[%clk 0:02:53]}  Qc7 {[%clk 0:02:25]} 16. Nc3 {[%clk 0:02:51]}  e5 {[%clk 0:02:21]} 17. dxe6 {[%clk 0:02:50]}  Rxe6 {[%clk 0:02:21]} 18. Nd5 {[%clk 0:02:49]}  Qd8 {[%clk 0:02:10]} 19. e4 {[%clk 0:02:43]}  Bxd5 {[%clk 0:02:05]} 20. cxd5 {[%clk 0:02:42]}  Re8 {[%clk 0:02:05]} 21. f4 {[%clk 0:02:42]}  f6 {[%clk 0:02:04]} 22. a4 {[%clk 0:02:38]}  Qe7 {[%clk 0:02:02]} 23. Re1 {[%clk 0:02:37]}  Rac8 {[%clk 0:01:55]} 24. Qc3 {[%clk 0:02:36]}  c4 {[%clk 0:01:51]} 25. Re3 {[%clk 0:02:32]}  Nc5 {[%clk 0:01:43]} 26. e5 {[%clk 0:02:32]}  Nf5 {[%clk 0:01:43]} 27. Re2 {[%clk 0:02:13]}  Nb3 {[%clk 0:01:41]} 28. Ne4 {[%clk 0:01:58]}  fxe5 {[%clk 0:01:36]} 29. fxe5 {[%clk 0:01:52]}  Nbd4 {[%clk 0:01:16]} 30. Rae1 {[%clk 0:01:42]}  Qxe5 {[%clk 0:01:03]} 31. Nf6+ {[%clk 0:01:38]}  Qxf6 {[%clk 0:01:04]} 32. Rxe8+ {[%clk 0:01:39]}  Rxe8 {[%clk 0:01:02]} 33. Rxe8+ {[%clk 0:01:39]}  Kf7 {[%clk 0:01:03]} 34. Qe1 {[%clk 0:01:31]}  c3 {[%clk 0:01:03]} 35. d6 {[%clk 0:01:28]}  Qxd6 {[%clk 0:00:58]} 36. g4 {[%clk 0:01:22]}  Ne7 {[%clk 0:00:31]} 37. Rh8 {[%clk 0:01:20]}  c2 {[%clk 0:00:27]} 38. Rxh7+ {[%clk 0:01:20]}  Kf8 {[%clk 0:00:25]} 39. Qf2+ {[%clk 0:01:12]}  Nef5 {[%clk 0:00:24]} 40. gxf5 {[%clk 0:00:35]}  c1=Q+ {[%clk 0:00:22]} 41. Bf1 {[%clk 0:00:36]}  Qg5+ {[%clk 0:00:20]} 42. Bg2 {[%clk 0:00:36]}  Qxf5 {[%clk 0:00:19]} 43. Rh8+ {[%clk 0:00:35]}  Kg7 {[%clk 0:00:18]} 44. Rh4 {[%clk 0:00:07]}  Ne2+ {[%clk 0:00:11]} 45. Kh1 {[%clk 0:00:06]}  Qdc5 {[%clk 0:00:11]} 46. Qe1 {[%clk 0:00:04]}  Qcf2 {[%clk 0:00:10]} 47. Qa1+ {[%clk 0:00:03]}  Qf6 {[%clk 0:00:09]} 48. Rd4 {[%clk 0:00:03]}  Q2xd4 {[%clk 0:00:08]} 49. Qa2 {[%clk 0:00:01]}  Qg1# {[%clk 0:00:08]} 0-1


[Site "https://www.chess.com"]

[Event "Titled Tuesday Blitz February 28 Early 2023"]
[White "Fiorito, Joaquin"]
[Black "Ilkhomi, Jaloliddin"]
[WhiteFideId "180173"]
[BlackFideId "14700948"]
[WhiteElo "2157"]
[BlackElo "2045"]
[Result "1-0"]
[Round "09"]
[TimeControl "180+2"]
[Date "2023.02.28"]
[WhiteClock "0:01:00"]
[BlackClock "0:00:18"]

1. d4 {[%clk 0:03:00]}  Nf6 {[%clk 0:02:59]} 2. Nc3 {[%clk 0:03:01]}  d5 {[%clk 0:02:56]} 3. Bf4 {[%clk 0:03:01]}  a6 {[%clk 0:02:53]} 4. e3 {[%clk 0:03:02]}  e6 {[%clk 0:02:53]} 5. g4 {[%clk 0:03:01]}  Bd6 {[%clk 0:02:53]} 6. Qf3 {[%clk 0:03:01]}  h6 {[%clk 0:02:51]} 7. h4 {[%clk 0:03:01]}  b6 {[%clk 0:02:48]} 8. g5 {[%clk 0:02:54]}  hxg5 {[%clk 0:02:32]} 9. hxg5 {[%clk 0:02:52]}  Rxh1 {[%clk 0:02:32]} 10. Qxh1 {[%clk 0:02:52]}  Bxf4 {[%clk 0:02:33]} 11. exf4 {[%clk 0:01:24]}  Ng8 {[%clk 0:02:01]} 12. Qh8 {[%clk 0:01:23]}  Kf8 {[%clk 0:02:01]} 13. Bd3 {[%clk 0:01:17]}  g6 {[%clk 0:02:01]} 14. Nf3 {[%clk 0:01:16]}  Nc6 {[%clk 0:02:00]} 15. O-O-O {[%clk 0:01:13]}  Bd7 {[%clk 0:01:56]} 16. Rh1 {[%clk 0:01:11]}  Qe7 {[%clk 0:01:55]} 17. Rh7 {[%clk 0:01:07]}  f5 {[%clk 0:01:01]} 18. Rxe7 {[%clk 0:01:03]}  Nxe7 {[%clk 0:01:02]} 19. Ne5 {[%clk 0:01:02]}  Be8 {[%clk 0:01:00]} 20. Qh7 {[%clk 0:00:57]}  c5 {[%clk 0:00:58]} 21. Nd1 {[%clk 0:00:54]}  c4 {[%clk 0:00:57]} 22. Be2 {[%clk 0:00:54]}  Ra7 {[%clk 0:00:48]} 23. Ne3 {[%clk 0:00:54]}  Nc6 {[%clk 0:00:42]} 24. Nxg6+ {[%clk 0:00:54]}  Bxg6 {[%clk 0:00:42]} 25. Qxg6 {[%clk 0:00:55]}  Nxd4 {[%clk 0:00:43]} 26. Bd1 {[%clk 0:00:52]}  Rg7 {[%clk 0:00:39]} 27. Qh5 {[%clk 0:00:51]}  b5 {[%clk 0:00:32]} 28. c3 {[%clk 0:00:51]}  Nc6 {[%clk 0:00:31]} 29. Qe2 {[%clk 0:00:51]}  b4 {[%clk 0:00:30]} 30. Nc2 {[%clk 0:00:50]}  bxc3 {[%clk 0:00:26]} 31. Qxe6 {[%clk 0:00:50]}  cxb2+ {[%clk 0:00:26]} 32. Kb1 {[%clk 0:00:50]}  Nge7 {[%clk 0:00:24]} 33. Ne3 {[%clk 0:00:51]}  Nd4 {[%clk 0:00:14]} 34. Qd7 {[%clk 0:00:48]}  c3 {[%clk 0:00:13]} 35. Qd8+ {[%clk 0:00:46]}  Kf7 {[%clk 0:00:13]} 36. Nxd5 {[%clk 0:00:46]}  Nxd5 {[%clk 0:00:11]} 37. Qxd5+ {[%clk 0:00:47]}  Ne6 {[%clk 0:00:12]} 38. Bb3 {[%clk 0:00:47]}  Rg6 {[%clk 0:00:10]} 39. Qc6 {[%clk 0:00:47]}  Ke7 {[%clk 0:00:09]} 40. Qxc3 {[%clk 0:00:47]}  Rg8 {[%clk 0:00:07]} 41. Qe5 {[%clk 0:00:47]}  Rg6 {[%clk 0:00:06]} 42. Bxe6 {[%clk 0:00:47]}  Rxe6 {[%clk 0:00:06]} 43. Qxe6+ {[%clk 0:00:48]}  Kxe6 {[%clk 0:00:06]} 44. Kxb2 {[%clk 0:00:49]}  Kd5 {[%clk 0:00:07]} 45. Kc3 {[%clk 0:00:49]}  Ke4 {[%clk 0:00:08]} 46. g6 {[%clk 0:00:50]}  Kxf4 {[%clk 0:00:08]} 47. g7 {[%clk 0:00:51]}  Kf3 {[%clk 0:00:09]} 48. g8=Q {[%clk 0:00:52]}  Kxf2 {[%clk 0:00:10]} 49. Qf7 {[%clk 0:00:52]}  f4 {[%clk 0:00:11]} 50. Qxf4+ {[%clk 0:00:52]}  Ke2 {[%clk 0:00:12]} 51. Qa4 {[%clk 0:00:53]}  a5 {[%clk 0:00:13]} 52. Qxa5 {[%clk 0:00:54]}  Kf3 {[%clk 0:00:13]} 53. a4 {[%clk 0:00:55]}  Kf4 {[%clk 0:00:14]} 54. Qb5 {[%clk 0:00:55]}  Ke4 {[%clk 0:00:14]} 55. a5 {[%clk 0:00:56]}  Kf3 {[%clk 0:00:15]} 56. a6 {[%clk 0:00:57]}  Kf2 {[%clk 0:00:15]} 57. a7 {[%clk 0:00:58]}  Ke1 {[%clk 0:00:16]} 58. a8=Q {[%clk 0:00:59]}  Kd1 {[%clk 0:00:16]} 59. Qab7 {[%clk 0:01:00]}  Kc1 {[%clk 0:00:17]} 60. Kd3 {[%clk 0:01:00]}  Kd1 {[%clk 0:00:18]} 61. Qb1# {[%clk 0:01:00]} 1-0


[Site "https://www.chess.com"]